fUSD/lending_fUSD_20240502
["ID","MTS","AMOUNT","RATE_DAILY","PERIOD"]
[325282636,1714681841753,-641.91,0.00030136,2]
[325282637,1714681841764,-500.0,0.00030136,2]
[325282638,1714681841777,-202.58432277,0.00030136,2]
[325282639,1714681841788,-746.97,0.00030136,2]
[325282640,1714681841799,-500.0,0.00030136,2]
[325282641,1714681841812,-1639.53,0.00030136,2]
[325282642,1714681841822,-500.0,0.00030136,2]
[325282643,1714681841835,-500.0,0.00030136,2]
[325282644,1714681841847,-827.05,0.00030136,2]
[325282645,1714681841858,-693.36,0.00030136,2]
[325282646,1714681841869,-500.0,0.00030136,2]
[325282647,1714681841880,-500.0,0.00030136,2]
[325282648,1714681841891,-500.0,0.00030136,2]
[325282649,1714681841902,-500.0,0.00030136,2]
[325282650,1714681841912,-500.0,0.00030136,2]
[325282651,1714681841924,-504.25781961,0.00030136,2]
[325282652,1714681841935,-500.0,0.00030136,2]
[325282653,1714681841946,-500.0,0.00030136,2]
[325282654,1714681841957,-513.55,0.00030136,2]
[325282655,1714681841968,-530.93,0.00030136,2]
[325282656,1714681841979,-831.2,0.00030136,2]
[325282657,1714681841990,-500.0,0.00030136,2]
[325282658,1714681842002,-500.0,0.00030136,2]
[325282659,1714681842013,-500.0,0.00030136,2]
[325282660,1714681842024,-500.0,0.00030136,2]
[325282661,1714681842035,-500.0,0.00030136,2]
[325282662,1714681842046,-799.44,0.00030136,2]
[325282663,1714681842058,-500.0,0.00030136,2]
[325282664,1714681842069,-974.16,0.00030136,2]
[325282665,1714681842080,-550.37401617,0.00030136,2]
[325282666,1714681842092,-500.0,0.00030136,2]
[325282667,1714681842104,-500.0,0.00030136,2]
[325282668,1714681842115,-500.0,0.00030136,2]
[325282669,1714681842126,-500.0,0.00030136,2]
[325282670,1714681842138,-503.0899805,0.00030136,2]
[325282671,1714681842149,-500.0,0.00030136,2]
[325282672,1714681842160,-500.0,0.00030136,2]
[325282673,1714681842171,-675.92,0.00030136,2]
[325282674,1714681842183,-735.97,0.00030136,2]
[325282675,1714681842193,-500.0,0.00030136,2]
[325282676,1714681842204,-500.0,0.00030136,2]
[325282677,1714681842216,-459.04742896,0.00030136,2]
[325282678,1714681842229,-500.0,0.00030136,2]
[325282679,1714681842241,-500.0,0.00030136,2]
[325282680,1714681842252,-500.0,0.00030136,2]
[325282681,1714681842263,-500.0,0.00030136,2]
[325282682,1714681842274,-500.0,0.00030136,2]
[325282683,1714681842284,-500.0,0.00030136,2]
[325282684,1714681842295,-500.0,0.00030136,2]
[325282685,1714681842306,-593.45158469,0.00030136,2]
[325282686,1714681842318,-500.0,0.00030136,2]
[325282687,1714681842329,-182.73506386,0.00030136,2]
[325282688,1714681842341,-905.5,0.00030136,2]
[325282689,1714681842352,-500.0,0.00030136,2]
[325282690,1714681842363,-500.0,0.00030136,2]
[325282691,1714681842374,-500.0,0.00030136,2]
[325282692,1714681842385,-500.0,0.00030136,2]
[325282693,1714681842396,-500.0,0.00030136,2]
[325282694,1714681842407,-500.0,0.00030136,2]
[325282695,1714681842418,-500.0,0.00030136,2]
[325282696,1714681842430,-500.0,0.00030136,2]
[325282697,1714681842442,-500.0,0.00030136,2]
[325282698,1714681842455,-565.71176825,0.00030136,2]
[325282699,1714681842466,-500.0,0.00030136,2]
[325282700,1714681842479,-500.0,0.00030136,2]
[325282701,1714681842490,-500.0,0.00030136,2]
[325282702,1714681842501,-731.49,0.00030136,2]
[325282703,1714681842512,-500.0,0.00030136,2]
[325282704,1714681842523,-696.24,0.00030136,2]
[325282706,1714681842536,-500.0,0.00030136,2]
[325282708,1714681842548,-500.0,0.00030136,2]
[325282711,1714681842559,-506.44,0.00030136,2]
[325282713,1714681842571,-500.0,0.00030136,2]
[325282715,1714681842582,-954.0,0.00030136,2]
[325282717,1714681842594,-509.52273796,0.00030136,2]
[325282719,1714681842605,-500.0,0.00030136,2]
[325282723,1714681842616,-500.0,0.00030136,2]
[325282725,1714681842627,-500.0,0.00030136,2]
[325282728,1714681842639,-500.0,0.00030136,2]
[325282731,1714681842650,-501.47056045,0.00030136,2]
[325282732,1714681842661,-500.0,0.00030136,2]
[325282733,1714681842671,-500.0,0.00030136,2]
[325282734,1714681842682,-593.47,0.00030136,2]
[325282735,1714681842693,-500.0,0.00030136,2]
[325282736,1714681842704,-500.0,0.00030136,2]
[325282737,1714681842715,-500.0,0.00030136,2]
[325282738,1714681842726,-500.0,0.00030136,2]
[325282739,1714681842737,-500.0,0.00030136,2]
[325282740,1714681842748,-500.0,0.00030136,2]
[325282741,1714681842760,-500.0,0.00030136,2]
[325282742,1714681842771,-500.0,0.00030136,2]
[325282743,1714681842782,-500.0,0.00030136,2]
[325282744,1714681842792,-500.0,0.00030136,2]
[325282745,1714681842803,-500.0,0.00030136,2]
[325282746,1714681842814,-500.0,0.00030136,2]
[325282747,1714681842825,-515.62,0.00030136,2]
[325282748,1714681842836,-693.85,0.00030136,2]
[325282749,1714681842846,-500.0,0.00030136,2]
[325282750,1714681842857,-712.22,0.00030136,2]
[325282751,1714681842868,-698.86,0.00030136,2]
[325282752,1714681842879,-500.0,0.00030136,2]
[325282753,1714681842890,-500.0,0.00030136,2]
[325282754,1714681842903,-640.88,0.00030136,2]
[325282755,1714681842916,-578.79,0.00030136,2]
[325282756,1714681842928,-500.0,0.00030136,2]
[325282757,1714681842940,-500.0,0.00030136,2]
[325282758,1714681842951,-500.0,0.00030136,2]
[325282759,1714681842962,-500.0,0.00030136,2]
[325282760,1714681842973,-500.0,0.00030136,2]
[325282761,1714681842985,-856.99,0.00030136,2]
[325282762,1714681842996,-500.0,0.00030136,2]
[325282763,1714681843005,-500.0,0.00030136,2]
[325282764,1714681843015,-503.14,0.00030136,2]
[325282765,1714681843025,-435.7847287,0.00030136,2]
[325282766,1714681843036,-500.0,0.00030136,2]
[325282767,1714681843045,-500.0,0.00030136,2]
[325282768,1714681843057,-500.0,0.00030136,2]
[325282769,1714681843067,-500.0,0.00030136,2]
[325282770,1714681843076,-500.0,0.00030136,2]
[325282771,1714681843088,-552.82,0.00030136,2]
[325282772,1714681843097,-500.0,0.00030136,2]
[325282773,1714681843107,-500.0,0.00030136,2]
[325282774,1714681843116,-500.0,0.00030136,2]
[325282775,1714681843126,-640.81,0.00030136,2]
[325282776,1714681843135,-1021.89,0.00030136,2]
[325282777,1714681843145,-500.0,0.00030136,2]
[325282778,1714681843154,-988.02,0.00030136,2]
[325282779,1714681843163,-500.0,0.00030136,2]
[325282780,1714681843172,-500.0,0.00030136,2]
[325282781,1714681843182,-500.0,0.00030136,2]
[325282782,1714681843191,-517.04,0.00030136,2]
[325282783,1714681843200,-500.0,0.00030136,2]
[325282784,1714681843210,-500.0,0.00030136,2]
[325282785,1714681843736,-500.0,0.00030136,2]
[325282786,1714681843766,-500.0,0.00030136,2]
[325282787,1714681843792,-972.59375673,0.00030136,2]
[325282788,1714681843809,-817.04,0.00030136,2]
[325282789,1714681843820,-500.0,0.00030136,2]
[325282790,1714681843829,-802.56,0.00030136,2]
[325282791,1714681843839,-397.81373323,0.00030136,2]
[325282792,1714681843848,-500.0,0.00030136,2]
[325282793,1714681843857,-180.1701142,0.00030136,2]
[325282794,1714681843866,-500.0,0.00030136,2]
[325282795,1714681843876,-533.62,0.00030136,2]
[325282796,1714681843885,-507.32948043,0.00030136,2]
[325282797,1714681843894,-501.1255681,0.00030136,2]
[325282798,1714681843903,-500.0,0.00030136,2]
[325282799,1714681843912,-500.0,0.00030136,2]
[325282800,1714681843922,-500.0,0.00030136,2]
[325282801,1714681843931,-573.76,0.00030136,2]
[325282802,1714681843940,-500.0,0.00030136,2]
[325282803,1714681843949,-662.52,0.00030136,2]
[325282804,1714681843958,-1500.0,0.00030136,2]
[325282805,1714681843967,-573.06,0.00030136,2]
[325282806,1714681843976,-500.0,0.00030136,2]
[325282807,1714681843986,-500.0,0.00030136,2]
[325282808,1714681843995,-500.0,0.00030136,2]
[325282809,1714681844006,-558.92,0.00030136,2]
[325282810,1714681844015,-803.76,0.00030136,2]
[325282811,1714681844023,-500.0,0.00030136,2]
[325282812,1714681844032,-500.0,0.00030136,2]
[325282813,1714681844042,-500.0,0.00030136,2]
[325282814,1714681844052,-500.0,0.00030136,2]
[325282815,1714681844061,-500.0,0.00030136,2]
[325282816,1714681844070,-500.03704044,0.00030136,2]
[325282817,1714681844079,-500.0,0.00030136,2]
[325282818,1714681844089,-500.0,0.00030136,2]
[325282819,1714681844098,-500.0,0.00030136,2]
[325282820,1714681844107,-632.71,0.00030136,2]
[325282821,1714681844116,-500.0,0.00030136,2]
[325282822,1714681844125,-500.0,0.00030136,2]
[325282823,1714681844134,-500.0,0.00030136,2]
[325282824,1714681844143,-502.15021493,0.00030136,2]
[325282825,1714681844152,-713.03,0.00030136,2]
[325282826,1714681844160,-500.0,0.00030136,2]
[325282827,1714681844170,-500.0,0.00030136,2]
[325282828,1714681844179,-229.18968656,0.00030136,2]
[325282829,1714681844188,-1210.43,0.00030136,2]
[325282830,1714681844197,-500.0,0.00030136,2]
[325282831,1714681844206,-1281.92,0.00030136,2]
[325282832,1714681844215,-500.0,0.00030136,2]
[325282833,1714681844225,-545.41,0.00030136,2]
[325282834,1714681844234,-538.98,0.00030136,2]
[325282835,1714681844243,-934.19,0.00030136,2]
[325282836,1714681844252,-500.0,0.00030136,2]
[325282837,1714681844262,-500.0,0.00030136,2]
[325282838,1714681844272,-500.0,0.00030136,2]
[325282839,1714681844281,-500.0,0.00030136,2]
[325282840,1714681844290,-504.00269152,0.00030136,2]
[325282841,1714681844298,-510.97,0.00030136,2]
[325282842,1714681844307,-1013.95,0.00030136,2]
[325282843,1714681844316,-500.0,0.00030136,2]
[325282844,1714681844325,-500.0,0.00030136,2]
[325282845,1714681844334,-500.0,0.00030136,2]
[325282846,1714681844343,-504.46470642,0.00030136,2]
[325282847,1714681844352,-500.0,0.00030136,2]
[325282848,1714681844361,-796.35,0.00030136,2]
[325282849,1714681844370,-500.0,0.00030136,2]
[325282850,1714681844379,-500.0,0.00030136,2]
[325282851,1714681844388,-500.0,0.00030136,2]
[325282852,1714681844396,-500.0,0.00030136,2]
[325282853,1714681844405,-1092.09,0.00030136,2]
[325282854,1714681844414,-500.0,0.00030136,2]
[325282855,1714681844423,-500.0,0.00030136,2]
[325282856,1714681844436,-500.0,0.00030136,2]
[325282857,1714681844444,-300.46132484,0.00030136,2]
[325282858,1714681844453,-500.0,0.00030136,2]
[325282859,1714681844462,-781.27,0.00030136,2]
[325282860,1714681844471,-500.0,0.00030136,2]
[325282861,1714681844480,-500.0,0.00030136,2]
[325282862,1714681844489,-500.0,0.00030136,2]
[325282863,1714681844498,-500.0,0.00030136,2]
[325282864,1714681844507,-500.0,0.00030136,2]
[325282865,1714681844516,-500.0,0.00030136,2]
[325282866,1714681844526,-840.21,0.00030136,2]
[325282867,1714681844536,-564.79,0.00030136,2]
[325282868,1714681844545,-500.0,0.00030136,2]
[325282869,1714681844554,-767.16,0.00030136,2]
[325282870,1714681844563,-500.0,0.00030136,2]
[325282871,1714681844572,-882.75,0.00030136,2]
[325282872,1714681844581,-500.0,0.00030136,2]
[325282873,1714681844591,-500.0,0.00030136,2]
[325282874,1714681844600,-500.0,0.00030136,2]
[325282875,1714681844610,-679.64,0.00030136,2]
[325282876,1714681844619,-500.0,0.00030136,2]
[325282877,1714681844628,-500.0,0.00030136,2]
[325282878,1714681844638,-500.0,0.00030136,2]
[325282879,1714681844647,-364.08611242,0.00030136,2]
[325282880,1714681844656,-500.0,0.00030136,2]
[325282881,1714681844665,-1075.76,0.00030136,2]
[325282882,1714681844675,-500.0,0.00030136,2]
[325282883,1714681844684,-500.0,0.00030136,2]
[325282884,1714681844693,-500.0,0.00030136,2]
[325282885,1714681844703,-500.0,0.00030136,2]
[325282886,1714681844713,-500.0,0.00030136,2]
[325282887,1714681844722,-500.0,0.00030136,2]
[325282888,1714681844732,-1032.35,0.00030136,2]
[325282889,1714681844742,-500.0,0.00030136,2]
[325282890,1714681844751,-500.0,0.00030136,2]
[325282891,1714681844761,-500.0,0.00030136,2]
[325282892,1714681844771,-500.0,0.00030136,2]
[325282893,1714681844781,-937.69,0.00030136,2]
[325282894,1714681844791,-500.0,0.00030136,2]
[325282895,1714681844800,-500.0,0.00030136,2]
[325282896,1714681844810,-846.89,0.00030136,2]
[325282897,1714681844821,-500.0,0.00030136,2]
[325282898,1714681844831,-500.0,0.00030136,2]
[325282899,1714681844843,-500.0,0.00030136,2]
[325282900,1714681844853,-500.0,0.00030136,2]
[325282901,1714681844865,-500.0,0.00030136,2]
[325282902,1714681844875,-500.0,0.00030136,2]
[325282903,1714681844888,-500.0,0.00030136,2]
[325282904,1714681844898,-500.0,0.00030136,2]
[325282905,1714681844908,-803.59,0.00030136,2]
[325282906,1714681844918,-500.0,0.00030136,2]
[325282907,1714681844928,-500.0,0.00030136,2]
[325282908,1714681844938,-1599.52,0.00030136,2]
[325282909,1714681844948,-150.0,0.00030136,2]
[325282910,1714681844958,-500.0,0.00030136,2]
[325282911,1714681844968,-500.0,0.00030136,2]
[325282912,1714681844978,-661.82,0.00030136,2]
[325282913,1714681844989,-500.0,0.00030136,2]
[325282914,1714681844999,-500.0,0.00030136,2]
[325282915,1714681845010,-522.75893437,0.00030136,2]
[325282916,1714681845021,-501.7346092,0.00030136,2]
[325282917,1714681845031,-500.0,0.00030136,2]
[325282918,1714681845042,-495.87298504,0.00030136,2]
[325282919,1714681845052,-500.0,0.00030136,2]
[325282920,1714681845062,-519.96644414,0.00030136,2]
[325282921,1714681845073,-798.63,0.00030136,2]
[325282922,1714681845082,-500.0,0.00030136,2]
[325282923,1714681845095,-500.0,0.00030136,2]
[325282924,1714681845106,-503.33810169,0.00030136,2]
[325282925,1714681845117,-1721.32,0.00030136,2]
[325282926,1714681845127,-500.0,0.00030136,2]
[325282927,1714681845138,-500.0,0.00030136,2]
[325282928,1714681845149,-500.0,0.00030136,2]
[325282929,1714681845159,-500.0,0.00030136,2]
[325282930,1714681845169,-500.0,0.00030136,2]
[325282931,1714681845178,-558.18276274,0.00030136,2]
[325282932,1714681845188,-830.1,0.00030136,2]
[325282933,1714681845198,-861.13,0.00030136,2]
[325282934,1714681845208,-500.0,0.00030136,2]
[325282935,1714681845217,-701.64,0.00030136,2]
[325282936,1714681845228,-680.31,0.00030136,2]
[325282937,1714681845238,-766.15,0.00030136,2]
[325282938,1714681845248,-621.41,0.00030136,2]
[325282939,1714681845257,-500.0,0.00030136,2]
[325282940,1714681845266,-1039.89,0.00030136,2]
[325282941,1714681845275,-861.41,0.00030136,2]
[325282942,1714681845284,-500.0,0.00030136,2]
[325282943,1714681845294,-500.0,0.00030136,2]
[325282944,1714681845303,-500.0,0.00030136,2]
[325282945,1714681845313,-500.0,0.00030136,2]
[325282946,1714681845324,-500.0,0.00030136,2]
[325282947,1714681845333,-500.0,0.00030136,2]
[325282948,1714681845343,-500.0,0.00030136,2]
[325282949,1714681845352,-500.0,0.00030136,2]
[325282950,1714681845361,-519.5325626,0.00030136,2]
[325282951,1714681845371,-500.0,0.00030136,2]
[325282952,1714681845381,-500.0,0.00030136,2]
[325282953,1714681845390,-500.0,0.00030136,2]
[325282954,1714681845401,-500.0,0.00030136,2]
[325282955,1714681845410,-589.67,0.00030136,2]
[325282956,1714681845419,-500.0,0.00030136,2]
[325282957,1714681845429,-500.0,0.00030136,2]
[325282958,1714681845439,-1035.93,0.00030136,2]
[325282959,1714681845448,-555.79,0.00030136,2]
[325282960,1714681845457,-688.76,0.00030136,2]
[325282961,1714681845471,-500.0,0.00030136,2]
[325282962,1714681845481,-500.0,0.00030136,2]
[325282963,1714681845490,-1405.22,0.00030136,2]
[325282964,1714681845499,-500.0,0.00030136,2]
[325282965,1714681845509,-500.0,0.00030136,2]
[325282966,1714681845519,-1110.41,0.00030136,2]
[325282967,1714681845528,-736.93,0.00030136,2]
[325282968,1714681845539,-500.0,0.00030136,2]
[325282969,1714681845550,-888.05,0.00030136,2]
[325282970,1714681845560,-594.87,0.00030136,2]
[325282971,1714681845570,-561.77030712,0.00030136,2]
[325282972,1714681845579,-500.0,0.00030136,2]
[325282973,1714681845589,-500.0,0.00030136,2]
[325282974,1714681845599,-500.0,0.00030136,2]
[325282975,1714681845609,-500.0,0.00030136,2]
[325282976,1714681845618,-846.25,0.00030136,2]
[325282977,1714681845628,-500.0,0.00030136,2]
[325282978,1714681845637,-500.0,0.00030136,2]
[325282979,1714681845647,-1199.19,0.00030136,2]
[325282980,1714681845656,-501.1957794,0.00030136,2]
[325282981,1714681845666,-500.0,0.00030136,2]
[325282982,1714681845675,-1654.42,0.00030136,2]
[325282983,1714681845684,-500.0,0.00030136,2]
[325282984,1714681845694,-500.0,0.00030136,2]
[325282985,1714681845704,-500.0,0.00030136,2]
[325282986,1714681845713,-500.0,0.00030136,2]
[325282987,1714681845722,-500.0,0.00030136,2]
[325282988,1714681845732,-500.0,0.00030136,2]
[325282989,1714681845742,-500.0,0.00030136,2]
[325282990,1714681845751,-1260.51,0.00030136,2]
[325282991,1714681845760,-500.0,0.00030136,2]
[325282992,1714681845769,-688.04,0.00030136,2]
[325282993,1714681845779,-500.0,0.00030136,2]
[325282994,1714681845788,-500.0,0.00030136,2]
[325282995,1714681845797,-500.0,0.00030136,2]
[325282996,1714681845806,-500.0,0.00030136,2]
[325282997,1714681845815,-447.63591902,0.00030136,2]
[325282998,1714681845824,-500.0,0.00030136,2]
[325282999,1714681845834,-500.0,0.00030136,2]
[325283000,1714681845845,-500.0,0.00030136,2]
[325283001,1714681845854,-706.41,0.00030136,2]
[325283002,1714681845863,-774.6,0.00030136,2]
[325283003,1714681845871,-1084.51,0.00030136,2]
[325283004,1714681845881,-500.0,0.00030136,2]
[325283005,1714681845890,-763.75,0.00030136,2]
[325283006,1714681845901,-500.0,0.00030136,2]
[325283007,1714681845911,-500.0,0.00030136,2]
[325283008,1714681845920,-500.0,0.00030136,2]
[325283009,1714681845931,-898.3,0.00030136,2]
[325283010,1714681845942,-500.0,0.00030136,2]
[325283011,1714681845952,-500.0,0.00030136,2]
[325283012,1714681845962,-500.0,0.00030136,2]
[325283013,1714681845972,-1480.74,0.00030136,2]
[325283014,1714681845982,-1325.42,0.00030136,2]
[325283015,1714681845991,-500.0,0.00030136,2]
[325283016,1714681846000,-500.0,0.00030136,2]
[325283017,1714681846010,-500.0,0.00030136,2]
[325283018,1714681846020,-1057.69,0.00030136,2]
[325283019,1714681846030,-500.0,0.00030136,2]
[325283020,1714681846040,-895.75,0.00030136,2]
[325283021,1714681846051,-500.0,0.00030136,2]
[325283022,1714681846061,-507.95,0.00030136,2]
[325283023,1714681846070,-500.0,0.00030136,2]
[325283024,1714681846079,-500.0,0.00030136,2]
[325283025,1714681846090,-499.17297707,0.00030136,2]
[325283026,1714681846100,-500.0,0.00030136,2]
[325283027,1714681846110,-500.0,0.00030136,2]
[325283028,1714681846120,-1491.45,0.00030136,2]
[325283029,1714681846129,-500.0,0.00030136,2]
[325283030,1714681846140,-500.0,0.00030136,2]
[325283031,1714681846150,-500.0,0.00030136,2]
[325283032,1714681846160,-500.0,0.00030136,2]
[325283033,1714681846170,-500.0,0.00030136,2]
[325283034,1714681846180,-1885.05,0.00030136,2]
[325283035,1714681846189,-748.48,0.00030136,2]
[325283036,1714681846198,-500.0,0.00030136,2]
[325283037,1714681846208,-500.0,0.00030136,2]
[325283038,1714681846218,-500.0,0.00030136,2]
[325283039,1714681846230,-885.8,0.00030136,2]
[325283040,1714681846241,-500.0,0.00030136,2]
[325283041,1714681846251,-500.0,0.00030136,2]
[325283042,1714681846260,-1069.17,0.00030136,2]
[325283043,1714681846269,-500.0,0.00030136,2]
[325283044,1714681846278,-500.0,0.00030136,2]
[325283045,1714681846288,-500.0,0.00030136,2]
[325283046,1714681846297,-500.0,0.00030136,2]
[325283047,1714681846308,-500.0,0.00030136,2]
[325283048,1714681846318,-500.0,0.00030136,2]
[325283049,1714681846327,-500.0,0.00030136,2]
[325283050,1714681846338,-1150.47,0.00030136,2]
[325283051,1714681846349,-500.0,0.00030136,2]
[325283052,1714681846359,-500.0,0.00030136,2]
[325283053,1714681846369,-779.11,0.00030136,2]
[325283054,1714681846378,-500.0,0.00030136,2]
[325283055,1714681846387,-1428.67,0.00030136,2]
[325283056,1714681846396,-677.23,0.00030136,2]
[325283057,1714681846406,-900.69,0.00030136,2]
[325283058,1714681846414,-500.0,0.00030136,2]
[325283059,1714681846423,-500.0,0.00030136,2]
[325283060,1714681846435,-500.0,0.00030136,2]
[325283061,1714681846443,-1421.46,0.00030136,2]
[325283062,1714681846452,-500.0,0.00030136,2]
[325283063,1714681846461,-500.0,0.00030136,2]
[325283064,1714681846474,-1115.13,0.00030136,2]
[325283065,1714681846483,-500.0,0.00030136,2]
[325283066,1714681846492,-500.0,0.00030136,2]
[325283067,1714681846502,-500.0,0.00030136,2]
[325283068,1714681846512,-695.27,0.00030136,2]
[325283069,1714681846521,-1090.94,0.00030136,2]
[325283070,1714681846531,-500.0,0.00030136,2]
[325283071,1714681846540,-500.0,0.00030136,2]
[325283072,1714681846552,-500.0,0.00030136,2]
[325283073,1714681846562,-500.0,0.00030136,2]
[325283074,1714681846572,-1420.87,0.00030136,2]
[325283075,1714681846581,-500.0,0.00030136,2]
[325283076,1714681846591,-500.0,0.00030136,2]
[325283077,1714681846602,-500.0,0.00030136,2]
[325283078,1714681846611,-500.0,0.00030136,2]
[325283079,1714681846621,-500.0,0.00030136,2]
[325283080,1714681846631,-500.0,0.00030136,2]
[325283081,1714681846641,-848.23,0.00030136,2]
[325283082,1714681846650,-1210.76,0.00030136,2]
[325283083,1714681846659,-500.0,0.00030136,2]
[325283084,1714681846668,-500.0,0.00030136,2]
[325283085,1714681846679,-500.0,0.00030136,2]
[325283086,1714681846689,-502.90531874,0.00030136,2]
[325283087,1714681846891,-500.0,0.00030136,2]
[325283088,1714681846902,-500.0,0.00030136,2]
[325283089,1714681846911,-500.0,0.00030136,2]
[325283090,1714681846921,-500.0,0.00030136,2]
[325283091,1714681846930,-500.0,0.00030136,2]
[325283092,1714681846940,-1726.89,0.00030136,2]
[325283093,1714681846949,-500.0,0.00030136,2]
[325283094,1714681846958,-303.16788279,0.00030136,2]
[325283095,1714681846967,-844.66,0.00030136,2]
[325283096,1714681846976,-994.7,0.00030136,2]
[325283097,1714681846985,-500.0,0.00030136,2]
[325283098,1714681846994,-500.0,0.00030136,2]
[325283099,1714681847003,-500.0,0.00030136,2]
[325283100,1714681847013,-500.0,0.00030136,2]
[325283101,1714681847023,-523.95,0.00030136,2]
[325283102,1714681847031,-500.0,0.00030136,2]
[325283103,1714681847040,-500.0,0.00030136,2]
[325283104,1714681847050,-1714.4,0.00030136,2]
[325283105,1714681847059,-1709.99,0.00030136,2]
[325283106,1714681847068,-1409.69,0.00030136,2]
[325283107,1714681847077,-1061.47,0.00030136,2]
[325283108,1714681847086,-1389.17,0.00030136,2]
[325283109,1714681847097,-500.0,0.00030136,2]
[325283110,1714681847106,-500.0,0.00030136,2]
[325283111,1714681847115,-2407.42,0.00030136,2]
[325283112,1714681847124,-500.0,0.00030136,2]
[325283113,1714681847133,-883.25,0.00030136,2]
[325283114,1714681847144,-500.0,0.00030136,2]
[325283115,1714681847154,-500.0,0.00030136,2]
[325283116,1714681847164,-500.0,0.00030136,2]
[325283117,1714681847173,-500.0,0.00030136,2]
[325283118,1714681847182,-500.0,0.00030136,2]
[325283119,1714681847191,-500.0,0.00030136,2]
[325283120,1714681847200,-1493.44,0.00030136,2]
[325283121,1714681847210,-500.0,0.00030136,2]
[325283122,1714681847220,-502.10579301,0.00030136,2]
[325283123,1714681847231,-500.0,0.00030136,2]
[325283124,1714681847240,-396.07442603,0.00030136,2]
[325283125,1714681847250,-766.45,0.00030136,2]
[325283126,1714681847259,-500.0,0.00030136,2]
[325283127,1714681847269,-1757.05,0.00030136,2]
[325283128,1714681847278,-500.0,0.00030136,2]
[325283129,1714681847287,-1978.57,0.00030136,2]
[325283130,1714681847297,-500.0,0.00030136,2]
[325283131,1714681847306,-500.0,0.00030136,2]
[325283132,1714681847315,-500.0,0.00030136,2]
[325283133,1714681847324,-500.0,0.00030136,2]
[325283134,1714681847333,-1290.88,0.00030136,2]
[325283135,1714681847343,-500.0,0.00030136,2]
[325283136,1714681847353,-1218.61,0.00030136,2]
[325283137,1714681847362,-500.0,0.00030136,2]
[325283138,1714681847372,-764.69,0.00030136,2]
[325283139,1714681847381,-500.0,0.00030136,2]
[325283140,1714681847390,-500.0,0.00030136,2]
[325283141,1714681847400,-886.86,0.00030136,2]
[325283142,1714681847409,-500.0,0.00030136,2]
[325283143,1714681847419,-605.08089706,0.00030136,2]
[325283144,1714681847430,-1751.56,0.00030136,2]
[325283145,1714681847441,-504.2611077,0.00030136,2]
[325283146,1714681847450,-500.0,0.00030136,2]
[325283147,1714681847460,-500.0,0.00030136,2]
[325283148,1714681847471,-2304.23,0.00030136,2]
[325283149,1714681847480,-500.0,0.00030136,2]
[325283150,1714681847490,-500.0,0.00030136,2]
[325283151,1714681847499,-712.15,0.00030136,2]